fUSD/lending_fUSD_20260126
["ID","MTS","AMOUNT","RATE_DAILY","PERIOD"]
[403606529,1769417440420,-500.0,0.00016087,2]
[403606530,1769417440429,-500.0,0.00016087,2]
[403606531,1769417440443,-500.0,0.00016087,2]
[403606532,1769417440453,-500.0,0.00016087,2]
[403606533,1769417440463,-500.0,0.00016087,2]
[403606534,1769417440472,-500.0,0.00016087,2]
[403606535,1769417440482,-500.0,0.00016087,2]
[403606536,1769417440492,-500.0,0.00016087,2]
[403606537,1769417440501,-500.0,0.00016087,2]
[403606538,1769417440511,-500.0,0.00016087,2]
[403606539,1769417440520,-500.0,0.00016087,2]
[403606540,1769417440530,-500.0,0.00016087,2]
[403606541,1769417440539,-500.0,0.00016087,2]
[403606542,1769417440549,-500.0,0.00016087,2]
[403606543,1769417440559,-500.0,0.00016087,2]
[403606544,1769417440568,-500.0,0.00016087,2]
[403606545,1769417440578,-500.0,0.00016087,2]
[403606547,1769417440587,-500.0,0.00016087,2]
[403606548,1769417440597,-500.0,0.00016087,2]
[403606551,1769417440606,-500.0,0.00016087,2]
[403606553,1769417440616,-500.0,0.00016087,2]
[403606555,1769417440626,-500.0,0.00016087,2]
[403606557,1769417440635,-500.0,0.00016087,2]
[403606559,1769417440648,-500.0,0.00016087,2]
[403606561,1769417440657,-500.0,0.00016087,2]
[403606563,1769417440666,-500.0,0.00016087,2]
[403606565,1769417440676,-500.0,0.00016087,2]
[403606567,1769417440686,-500.0,0.00016087,2]
[403606569,1769417440695,-500.0,0.00016087,2]
[403606571,1769417440705,-500.0,0.00016087,2]
[403606573,1769417440716,-500.0,0.00016087,2]
[403606575,1769417440726,-500.0,0.00016087,2]
[403606577,1769417440736,-500.0,0.00016087,2]
[403606580,1769417440746,-500.0,0.00016087,2]
[403606583,1769417440756,-500.0,0.00016087,2]
[403606586,1769417440767,-500.0,0.00016087,2]
[403606588,1769417440777,-500.0,0.00016087,2]
[403606590,1769417440786,-500.0,0.00016087,2]
[403606592,1769417440796,-500.0,0.00016087,2]
[403606594,1769417440805,-500.0,0.00016087,2]
[403606596,1769417440815,-500.0,0.00016087,2]
[403606598,1769417440824,-500.0,0.00016087,2]
[403606600,1769417440837,-500.0,0.00016087,2]
[403606602,1769417440849,-500.0,0.00016087,2]
[403606604,1769417440859,-500.0,0.00016087,2]
[403606606,1769417440869,-500.0,0.00016087,2]
[403606608,1769417440878,-469.36203876,0.00016087,2]
[403606610,1769417440888,-500.0,0.00016087,2]
[403606612,1769417440899,-500.0,0.00016087,2]
[403606614,1769417440908,-500.0,0.00016087,2]
[403606616,1769417440919,-500.0,0.00016087,2]
[403606619,1769417440929,-500.0,0.00016087,2]
[403606621,1769417440939,-500.0,0.00016087,2]
[403606623,1769417440949,-500.0,0.00016087,2]
[403606625,1769417440959,-500.0,0.00016087,2]
[403606627,1769417440968,-500.0,0.00016087,2]
[403606629,1769417440978,-500.0,0.00016087,2]
[403606631,1769417440988,-500.0,0.00016087,2]
[403606633,1769417440997,-500.0,0.00016087,2]
[403606635,1769417441007,-500.0,0.00016087,2]
[403606637,1769417441016,-500.0,0.00016087,2]
[403606639,1769417441028,-500.0,0.00016087,2]
[403606641,1769417441038,-500.0,0.00016087,2]
[403606643,1769417441048,-500.0,0.00016087,2]
[403606645,1769417441058,-500.0,0.00016087,2]
[403606646,1769417441067,-500.0,0.00016087,2]
[403606647,1769417441077,-500.0,0.00016087,2]
[403606648,1769417441086,-500.0,0.00016087,2]
[403606649,1769417441097,-500.0,0.00016087,2]
[403606650,1769417441107,-500.0,0.00016087,2]
[403606651,1769417441118,-500.0,0.00016087,2]
[403606652,1769417441128,-550.0,0.00016087,2]
[403606653,1769417441138,-151.0,0.0001609,2]
[403606654,1769417441148,-500.0,0.0001609,2]
[403606655,1769417441158,-500.0,0.00016099,2]
[403606656,1769417441167,-500.0,0.00016099,2]
[403606657,1769417441176,-293.07073164,0.00016099,2]
[403606658,1769417441186,-500.0,0.00016099,2]
[403606659,1769417441197,-500.0,0.00016099,2]
[403606660,1769417441207,-500.0,0.00016099,2]
[403606661,1769417441218,-500.0,0.00016099,2]
[403606662,1769417441227,-534.26205379,0.00016099,2]
[403606663,1769417441238,-500.0,0.00016099,2]
[403606664,1769417441249,-505.8124625,0.00016099,2]
[403606665,1769417441258,-520.31,0.00016099,2]
[403606666,1769417441268,-520.31,0.00016099,2]
[403606667,1769417441277,-520.31,0.00016099,2]
[403606668,1769417441287,-520.31,0.00016099,2]
[403606669,1769417441296,-621.79073632,0.00016099,2]
[403606670,1769417441306,-500.0,0.00016099,2]
[403606671,1769417441316,-500.0,0.00016099,2]
[403606672,1769417441326,-500.0,0.00016099,2]
[403606674,1769417441336,-500.0,0.00016099,2]
[403606675,1769417441345,-500.0,0.00016099,2]
[403606676,1769417441355,-500.0,0.00016099,2]
[403606677,1769417441364,-500.0,0.00016099,2]
[403606678,1769417441374,-500.0,0.00016099,2]
[403606679,1769417441383,-500.0,0.00016099,2]
[403606680,1769417441393,-500.0,0.00016099,2]
[403606681,1769417441404,-500.0,0.00016099,2]
[403606682,1769417441415,-500.0,0.00016099,2]
[403606683,1769417441424,-500.0,0.00016099,2]
[403606684,1769417441434,-500.0,0.00016099,2]
[403606685,1769417441444,-500.0,0.00016099,2]
[403606686,1769417441454,-500.0,0.00016099,2]
[403606687,1769417441463,-500.0,0.00016099,2]
[403606688,1769417441473,-500.0,0.00016099,2]
[403606689,1769417441483,-500.0,0.00016099,2]
[403606690,1769417441494,-500.0,0.00016099,2]
[403606691,1769417441503,-150.0,0.00016099,2]
[403606692,1769417441513,-500.0,0.00016099,2]
[403606693,1769417441523,-500.0,0.00016099,2]
[403606694,1769417441532,-360.36954837,0.00016099,2]
[403606695,1769417441542,-500.0,0.00016099,2]
[403606696,1769417441551,-500.0,0.00016099,2]
[403606697,1769417441561,-500.0,0.00016099,2]
[403606698,1769417441571,-500.0,0.00016099,2]
[403606699,1769417441580,-500.0,0.00016099,2]
[403606700,1769417441590,-500.0,0.00016099,2]
[403606701,1769417441599,-512.6177601,0.00016099,2]
[403606702,1769417441609,-562.88447202,0.00016099,2]
[403606703,1769417441619,-160.9179766,0.00016099,2]
[403606704,1769417441628,-376.20964273,0.00016099,2]
[403606705,1769417441638,-500.0,0.00016099,2]
[403606706,1769417441647,-407.83354669,0.00016099,2]
[403606707,1769417441657,-246.60609999,0.00016099,2]
[403606708,1769417441667,-165.59145879,0.00016099,2]
[403606709,1769417441676,-166.66,0.00016136,2]
[403606710,1769417441685,-182.9,0.000162,2]
[403606711,1769417441694,-484.73,0.000162,2]
[403606712,1769417441704,-150.0,0.000162,2]
[403606713,1769417441714,-150.0,0.000162,2]
[403606714,1769417441723,-150.0,0.000162,2]
[403606715,1769417441732,-150.0,0.000162,2]
[403606716,1769417441742,-150.0,0.000162,2]
[403606717,1769417441752,-468.76,0.000162,2]
[403606718,1769417441763,-612.72,0.000162,2]
[403606719,1769417441773,-300.8,0.000162,2]
[403606720,1769417441782,-150.0,0.000162,2]
[403606721,1769417441791,-150.0,0.000162,2]
[403606722,1769417441800,-150.0,0.000162,2]
[403606723,1769417441810,-150.0,0.000162,2]
[403606724,1769417441819,-150.0,0.000162,2]
[403606725,1769417441829,-399.37,0.000162,2]
[403606726,1769417441838,-150.0,0.000162,2]
[403606727,1769417441851,-150.0,0.000162,2]
[403606728,1769417441861,-150.0,0.000162,2]
[403606729,1769417441871,-150.0,0.000162,2]
[403606730,1769417441882,-150.0,0.000162,2]
[403606731,1769417441892,-150.0,0.000162,2]
[403606732,1769417441907,-727.34,0.000162,2]
[403606733,1769417441918,-175.76,0.000162,2]
[403606734,1769417441927,-150.0,0.000162,2]
[403606735,1769417441938,-150.0,0.000162,2]
[403606736,1769417441948,-172.23,0.000162,2]
[403606737,1769417441957,-150.0,0.000162,2]
[403606738,1769417441967,-172.23,0.000162,2]
[403606739,1769417441977,-172.23,0.000162,2]
[403606740,1769417441987,-1000.0,0.000162,2]
[403606741,1769417441997,-1000.0,0.000162,3]
[403606742,1769417442007,-3766.39488595,0.00016281,2]
[403606743,1769417442018,-208.92,0.00016405,2]
[403606744,1769417442029,-500.0,0.00016437,2]
[403606745,1769417442045,-500.0,0.00016437,2]
[403606746,1769417442058,-500.0,0.00016437,2]
[403606747,1769417442068,-500.0,0.00016438,2]
[403606748,1769417442078,-500.0,0.00016438,2]
[403606749,1769417442088,-500.0,0.00016438,2]
[403606750,1769417442110,-500.0,0.00016438,2]
[403606751,1769417442124,-500.0,0.00016438,2]
[403606752,1769417442134,-500.0,0.00016438,2]
[403606753,1769417442143,-578.33603116,0.00016438,2]
[403606754,1769417442152,-500.0,0.00016438,2]
[403606755,1769417442162,-500.0,0.00016438,2]
[403606756,1769417442171,-500.0,0.00016438,2]
[403606757,1769417442181,-500.0,0.00016438,2]
[403606758,1769417442191,-500.0,0.00016438,2]
[403606759,1769417442201,-500.0,0.00016438,2]
[403606760,1769417442210,-500.0,0.00016438,2]
[403606761,1769417442220,-500.0,0.00016438,2]
[403606762,1769417442229,-673.70462935,0.00016438,2]
[403606763,1769417442239,-673.70462935,0.00016438,2]
[403606764,1769417442248,-673.70462935,0.00016438,2]
[403606765,1769417442257,-673.70462935,0.00016438,2]
[403606766,1769417442268,-673.70462935,0.00016438,2]
[403606767,1769417442277,-673.70462935,0.00016438,2]
[403606768,1769417442287,-673.70462935,0.00016438,2]
[403606769,1769417442296,-673.70462935,0.00016438,2]
[403606770,1769417442305,-673.70462935,0.00016438,2]
[403606771,1769417442314,-673.70462935,0.00016438,2]
[403606772,1769417442324,-673.70462935,0.00016438,2]
[403606773,1769417442333,-673.70462935,0.00016438,2]
[403606774,1769417442342,-673.70462935,0.00016438,2]
[403606775,1769417442352,-673.70462935,0.00016438,2]
[403606776,1769417442361,-673.70462935,0.00016438,2]
[403606777,1769417442371,-673.70462935,0.00016438,2]
[403606778,1769417442380,-673.70462935,0.00016438,2]
[403606779,1769417442389,-673.70462935,0.00016438,2]
[403606780,1769417442399,-673.70462935,0.00016438,2]
[403606781,1769417442408,-673.70462935,0.00016438,2]
[403606782,1769417442418,-673.70462935,0.00016438,2]
[403606783,1769417442428,-673.70462935,0.00016438,2]
[403606784,1769417442437,-673.70462935,0.00016438,2]
[403606785,1769417442447,-673.70462935,0.00016438,2]
[403606786,1769417442456,-673.70462935,0.00016438,2]
[403606787,1769417442465,-673.70462935,0.00016438,2]
[403606788,1769417442475,-673.70462935,0.00016438,2]
[403606789,1769417442485,-673.70462935,0.00016438,2]
[403606790,1769417442494,-673.70462935,0.00016438,2]
[403606791,1769417442503,-673.70462935,0.00016438,2]
[403606792,1769417442512,-673.70462935,0.00016438,2]
[403606793,1769417442522,-673.70462935,0.00016438,2]
[403606794,1769417442531,-673.70462935,0.00016438,2]
[403606795,1769417442540,-673.70462935,0.00016438,2]
[403606796,1769417442549,-673.70462935,0.00016438,2]
[403606797,1769417442559,-673.70462935,0.00016438,2]
[403606798,1769417442568,-673.70462935,0.00016438,2]
[403606800,1769417442907,-673.70462935,0.00016438,2]
[403606801,1769417442918,-673.70462935,0.00016438,2]
[403606802,1769417442927,-673.70462935,0.00016438,2]
[403606803,1769417442937,-673.70462935,0.00016438,2]
[403606804,1769417442947,-673.70462935,0.00016438,2]
[403606805,1769417442955,-673.70462935,0.00016438,2]
[403606806,1769417442965,-673.70462935,0.00016438,2]
[403606807,1769417442974,-673.70462935,0.00016438,2]
[403606809,1769417442983,-673.70462935,0.00016438,2]
[403606811,1769417442993,-673.70462935,0.00016438,2]
[403606812,1769417443003,-673.70462935,0.00016438,2]
[403606813,1769417443012,-1273.23,0.00016438,2]
[403606814,1769417443021,-1273.23,0.00016438,2]
[403606815,1769417443031,-1273.23,0.00016438,2]
[403606816,1769417443040,-1273.23,0.00016438,2]
[403606818,1769417443049,-653.11921013,0.00016438,2]
[403606820,1769417443059,-653.11921013,0.00016438,2]
[403606822,1769417443069,-653.11921013,0.00016438,2]
[403606824,1769417443084,-653.11921013,0.00016438,2]
[403606826,1769417443094,-653.11921013,0.00016438,2]
[403606828,1769417443103,-653.11921013,0.00016438,2]
[403606830,1769417443113,-653.11921013,0.00016438,2]
[403606832,1769417443122,-653.11921013,0.00016438,2]
[403606834,1769417443132,-1273.23,0.00016438,2]
[403606836,1769417443142,-653.11921013,0.00016438,2]
[403606837,1769417443151,-653.11921013,0.00016438,2]
[403606838,1769417443160,-653.11921013,0.00016438,2]
[403606839,1769417443170,-653.11921013,0.00016438,2]
[403606840,1769417443179,-653.11921013,0.00016438,2]
[403606841,1769417443189,-653.11921013,0.00016438,2]
[403606842,1769417443198,-653.11921013,0.00016438,2]
[403606843,1769417443207,-653.11921013,0.00016438,2]
[403606844,1769417443217,-653.11921013,0.00016438,2]
[403606845,1769417443226,-653.11921013,0.00016438,2]
[403606846,1769417443235,-653.11921013,0.00016438,2]
[403606847,1769417443244,-653.11921013,0.00016438,2]
[403606848,1769417443254,-653.11921013,0.00016438,2]
[403606849,1769417443264,-653.11921013,0.00016438,2]
[403606850,1769417443273,-653.11921013,0.00016438,2]
[403606851,1769417443283,-653.11921013,0.00016438,2]
[403606852,1769417443292,-653.11921013,0.00016438,2]
[403606853,1769417443302,-653.11921013,0.00016438,2]
[403606854,1769417443311,-653.11921013,0.00016438,2]
[403606855,1769417443320,-979.67881508,0.00016438,2]
[403606856,1769417443329,-798.0,0.00016438,2]
[403606857,1769417443339,-168.41592957,0.00016459,2]
[403606858,1769417443348,-166.66,0.00016469,2]
[403606859,1769417443358,-514.56190828,0.0001649,2]
[403606860,1769417443367,-1181.73,0.000165,2]
[403606861,1769417443377,-3766.39488595,0.00016512,2]
[403606862,1769417443386,-1000.0,0.00016515,2]
[403606863,1769417443395,-150.0,0.00016548,2]
[403606864,1769417443405,-151.72557844,0.00016548,2]
[403606865,1769417443414,-150.0,0.00016548,2]
[403606866,1769417443423,-500.0,0.00016548,2]
[403606867,1769417443433,-150.0,0.00016548,2]
[403606868,1769417443443,-500.0,0.00016548,2]
[403606869,1769417443453,-150.0,0.00016548,2]
[403606870,1769417443464,-150.0,0.00016603,2]
[403606871,1769417443473,-150.0,0.00016603,2]
[403606872,1769417443483,-500.0,0.00016603,2]
[403606873,1769417443493,-150.0,0.00016603,2]
[403606874,1769417443503,-500.0,0.00016603,2]
[403606875,1769417443513,-150.0,0.00016603,2]
[403606876,1769417443523,-150.0,0.00016658,2]
[403606877,1769417443533,-150.0,0.00016658,2]
[403606878,1769417443543,-500.0,0.00016658,2]
[403606879,1769417443552,-513.3853666,0.00016658,2]
[403606880,1769417443561,-150.0,0.00016658,2]
[403606881,1769417443570,-298.9,0.00016695,2]
[403606882,1769417443579,-150.0,0.00016712,2]
[403606883,1769417443588,-150.0,0.00016712,2]
[403606884,1769417443597,-500.0,0.00016712,2]
[403606885,1769417443607,-150.0,0.00016712,2]
[403606886,1769417443616,-3766.39488595,0.00016743,2]
[403606887,1769417443625,-150.0,0.00016767,2]
[403606888,1769417443634,-271.0,0.00016767,2]
[403606889,1769417443643,-500.0,0.00016767,2]
[403606890,1769417443652,-150.0,0.00016767,2]
[403606892,1769417443662,-1000.0,0.000168,4]
[403606893,1769417443671,-166.66,0.00016802,2]
[403606894,1769417443681,-298.9,0.00016814,2]
[403606895,1769417443690,-250.0,0.00016822,2]
[403606896,1769417443699,-500.0,0.00016822,2]
[403606897,1769417443709,-197.61706048,0.00016822,2]
[403606898,1769417443720,-502.0,0.00016849,2]
[403606899,1769417443730,-173.82376987,0.00016877,2]
[403606900,1769417443740,-500.0,0.00016884,2]
[403606901,1769417443750,-500.46570167,0.00016884,2]
[403606902,1769417443760,-501.57799136,0.00016884,2]
[403606903,1769417443769,-500.0,0.00016884,2]
[403606904,1769417443779,-500.93909876,0.00016884,2]
[403606905,1769417443789,-500.79595583,0.00016884,2]
[403606906,1769417443798,-500.0,0.00016884,2]
[403606907,1769417443807,-225.87248406,0.00016884,2]
[403606908,1769417443816,-500.0,0.00016884,2]
[403606909,1769417443826,-500.0,0.00016884,2]
[403606910,1769417443835,-326.24971363,0.00016884,2]
[403606911,1769417443849,-500.0,0.00016884,2]
[403606912,1769417443859,-500.0,0.00016884,2]
[403606913,1769417443868,-500.0,0.00016884,2]
[403606914,1769417443877,-500.0,0.00016884,2]
[403606915,1769417443887,-298.9,0.00016932,2]
[403606916,1769417443896,-168.41592957,0.00016939,2]
[403606917,1769417443905,-3766.39488595,0.00016975,2]
[403606918,1769417443915,-158.49064135,0.00016977,2]
[403606919,1769417443926,-200.0,0.00016983,2]
[403606920,1769417443936,-315.45,0.00016986,2]
[403606921,1769417443945,-763.0,0.00016996,2]
[403606922,1769417443955,-250.0,0.00017,2]
[403606923,1769417443964,-590.0,0.00017,2]
[403606924,1769417443973,-1000.0,0.00017008,2]
[403606925,1769417443982,-1086.0,0.0001704,2]
[403606926,1769417443992,-1086.0,0.0001704,2]
[403606927,1769417444001,-484.73,0.00017041,2]
[403606928,1769417444010,-484.73,0.00017041,2]
[403606929,1769417444019,-484.73,0.00017041,2]
[403606930,1769417444029,-484.73,0.00017041,2]
[403606931,1769417444039,-470.63,0.00017041,2]
[403606932,1769417444048,-298.9,0.00017051,2]
[403606933,1769417444057,-1000.0,0.00017073,2]
[403606934,1769417444067,-1335.515,0.00017073,2]
[403606935,1769417444076,-3477.0,0.00017073,2]
[403606936,1769417444086,-621.408,0.00017073,2]
[403606937,1769417444096,-1420.19,0.00017073,2]
[403606938,1769417444105,-281.661,0.00017073,2]
[403606939,1769417444115,-1269.0,0.00017073,2]
[403606940,1769417444126,-916.0,0.00017073,2]
[403606941,1769417444135,-1204.0,0.00017073,2]
[403606942,1769417444144,-6570.0,0.00017073,2]
[403606943,1769417444153,-150.0,0.00017073,2]
[403606944,1769417444163,-266.0,0.00017073,2]
[403606945,1769417444172,-2442.0,0.00017073,2]
[403606946,1769417444181,-567.0,0.00017073,2]
[403606947,1769417444191,-500.0,0.00017097,2]
[403606948,1769417444200,-500.0,0.00017097,2]
[403606949,1769417444210,-500.0,0.00017097,2]
[403606950,1769417444220,-500.0,0.00017097,2]
[403606951,1769417444230,-474.17198166,0.00017097,2]
[403606952,1769417444239,-500.0,0.00017097,2]
[403606953,1769417444249,-500.0,0.00017097,2]
[403606954,1769417444258,-322.6107,0.00017099,2]
[403606955,1769417444268,-250.0,0.00017099,2]
[403606956,1769417444278,-250.0,0.00017099,2]
[403606957,1769417444287,-250.0,0.00017099,2]
[403606958,1769417444297,-250.0,0.00017099,2]
[403606959,1769417444306,-2500.0,0.00017099,2]
[403606960,1769417444316,-250.0,0.00017099,2]
[403606961,1769417444325,-250.0,0.00017099,2]
[403606962,1769417444335,-250.0,0.00017099,2]
[403606963,1769417444345,-250.0,0.00017099,2]
[403606964,1769417444354,-250.0,0.00017099,2]
[403606965,1769417444364,-250.0,0.00017099,2]
[403606966,1769417444373,-250.0,0.00017099,2]
[403606967,1769417444382,-250.0,0.00017099,2]
[403606968,1769417444391,-250.0,0.00017099,2]
[403606969,1769417444401,-250.0,0.00017099,2]
[403606970,1769417444410,-250.0,0.00017099,2]
[403606971,1769417444419,-250.0,0.00017099,2]
[403606972,1769417444428,-250.0,0.00017099,2]
[403606973,1769417444437,-250.0,0.00017099,2]
[403606974,1769417444446,-174.61919141,0.00017099,2]
[403606975,1769417444455,-250.0,0.00017099,2]
[403606976,1769417444463,-250.0,0.00017099,2]
[403606977,1769417444472,-250.0,0.00017099,2]
[403606978,1769417444482,-250.0,0.00017099,2]
[403606979,1769417444491,-250.0,0.00017099,2]
[403606980,1769417444500,-250.0,0.00017099,2]
[403606981,1769417444509,-250.0,0.00017099,2]
[403606982,1769417444519,-250.0,0.00017099,2]
[403606983,1769417444528,-250.0,0.00017099,2]
[403606984,1769417444537,-250.0,0.00017099,2]
[403606985,1769417444546,-250.0,0.00017099,2]
[403606986,1769417444555,-250.0,0.00017099,2]
[403606987,1769417444564,-250.0,0.00017099,2]
[403606988,1769417444574,-250.0,0.00017099,2]
[403606989,1769417444583,-250.0,0.00017099,2]
[403606990,1769417444592,-250.0,0.00017099,2]
[403606991,1769417444602,-250.0,0.00017099,2]
[403606992,1769417444611,-250.0,0.00017099,2]
[403606993,1769417444620,-250.0,0.00017099,2]
[403606994,1769417444629,-250.0,0.00017099,2]
[403606995,1769417444639,-250.0,0.00017099,2]
[403606996,1769417444648,-250.0,0.00017099,2]
[403606997,1769417444658,-250.0,0.00017099,2]
[403606998,1769417444667,-250.0,0.00017099,2]
[403606999,1769417444677,-250.0,0.00017099,2]
[403607000,1769417444686,-250.0,0.00017099,2]
[403607001,1769417444697,-250.0,0.00017099,2]
[403607002,1769417444706,-250.0,0.00017099,2]
[403607003,1769417444716,-250.0,0.00017099,2]
[403607004,1769417444726,-250.0,0.00017099,2]
[403607005,1769417444735,-250.0,0.00017099,2]
[403607006,1769417444744,-250.0,0.00017099,2]
[403607007,1769417444754,-250.0,0.00017099,2]
[403607008,1769417444763,-250.0,0.00017099,2]
[403607009,1769417444772,-854.2589148,0.00017099,2]
[403607010,1769417444782,-250.0,0.00017099,2]
[403607011,1769417444791,-250.0,0.00017099,2]
[403607012,1769417444799,-250.0,0.00017099,2]
[403607013,1769417444809,-151.0,0.00017099,2]
[403607014,1769417444817,-250.0,0.00017099,2]
[403607015,1769417444827,-500.0,0.00017099,2]
[403607016,1769417444836,-500.0,0.00017099,2]
[403607017,1769417444845,-500.0,0.00017099,2]
[403607018,1769417444856,-500.0,0.00017099,2]
[403607019,1769417444865,-1000.0,0.00017099,2]
[403607020,1769417444874,-500.0,0.00017099,2]
[403607021,1769417444883,-3000.0,0.00017099,2]
[403607022,1769417444893,-500.0,0.00017099,2]
[403607023,1769417444903,-3000.0,0.00017099,2]
[403607024,1769417444912,-500.0,0.00017099,2]
[403607025,1769417444924,-500.0,0.00017099,2]
[403607026,1769417444933,-578.20924308,0.00017099,2]
[403607027,1769417444943,-500.0,0.00017099,2]
[403607028,1769417444952,-500.0,0.00017099,2]
[403607029,1769417444962,-500.0,0.00017099,2]
[403607030,1769417444971,-721.12765535,0.00017099,2]
[403607031,1769417444980,-151.0,0.00017099,2]
[403607032,1769417444989,-250.0,0.00017099,2]
[403607033,1769417444999,-250.0,0.00017099,2]
[403607034,1769417445009,-1000.0,0.00017112,2]
[403607035,1769417445018,-510.0,0.00017119,2]
[403607036,1769417445027,-166.66,0.00017135,2]
[403607037,1769417445036,-263.95931647,0.00017169,2]
[403607038,1769417445045,-298.9,0.0001717,2]
[403607039,1769417445055,-363.76,0.00017178,2]
[403607040,1769417445064,-1000.0,0.00017248,2]
[403607041,1769417445073,-1000.0,0.0001726,2]
[403607042,1769417445083,-500.0,0.00017278,2]
[403607043,1769417445092,-520.31,0.00017278,2]
[403607044,1769417445101,-500.0,0.00017278,2]
[403607045,1769417445111,-500.0,0.00017278,2]
[403607046,1769417445120,-298.9,0.00017288,2]
[403607047,1769417445129,-365.55160693,0.00017354,2]
[403607048,1769417445139,-1086.0,0.0001736,2]
[403607049,1769417445148,-1086.0,0.0001736,2]
[403607050,1769417445157,-1086.0,0.0001736,2]
[403607051,1769417445167,-1086.0,0.0001736,2]
[403607052,1769417445178,-2237.22,0.00017391,2]
[403607053,1769417445188,-298.9,0.00017407,2]
[403607054,1769417445198,-168.41592957,0.0001742,2]
[403607055,1769417445208,-497.96084495,0.00017432,2]
[403607056,1769417445218,-1000.0,0.00017432,2]
[403607057,1769417445227,-1000.0,0.00017432,2]
[403607058,1769417445237,-1000.0,0.00017432,2]
[403607059,1769417445246,-1005.20347568,0.00017432,2]
[403607060,1769417445256,-1000.0,0.00017432,2]
[403607061,1769417445266,-1000.0,0.00017432,2]
[403607062,1769417445276,-166.66,0.00017467,2]
[403607063,1769417445285,-820.43,0.00017496,2]
[403607064,1769417445295,-500.0,0.00017499,2]
[403607065,1769417445304,-500.0,0.00017499,2]
[403607066,1769417445316,-500.0,0.00017499,2]
[403607067,1769417445326,-500.0,0.00017499,2]
[403607068,1769417445336,-500.0,0.00017499,2]
[403607069,1769417445346,-500.0,0.00017499,2]
[403607070,1769417445355,-298.9,0.00017525,2]
[403607071,1769417445364,-600.0,0.00017531,2]
[403607072,1769417445374,-1000.0,0.00017534,2]
[403607073,1769417445384,-296.2237933,0.00017563,2]
[403607074,1769417445395,-12566.0,0.00017574,2]
[403607075,1769417445403,-1000.0,0.00017595,2]
[403607076,1769417445413,-20050.25542141,0.000176,2]
[403607077,1769417445422,-560.38,0.000176,2]
[403607078,1769417445431,-500.0,0.00017612,2]
[403607079,1769417445441,-150.0,0.00017616,2]
[403607080,1769417445450,-150.0,0.00017616,2]
[403607081,1769417445459,-1231.25,0.00017616,2]
[403607082,1769417445469,-1231.25,0.00017616,2]
[403607083,1769417445478,-150.0,0.00017616,2]
[403607084,1769417445487,-150.0,0.00017616,2]
[403607085,1769417445497,-1262.34,0.00017616,2]
[403607086,1769417445506,-150.97,0.00017616,2]
[403607087,1769417445515,-150.0,0.00017616,2]
[403607088,1769417445525,-151.11,0.00017616,2]
[403607089,1769417445534,-1231.25,0.00017616,2]
[403607090,1769417445543,-150.0,0.00017616,2]
[403607091,1769417445553,-2219.36,0.00017616,2]
[403607092,1769417445562,-150.0,0.00017616,2]
[403607093,1769417445571,-590.0,0.00017636,2]
[403607094,1769417445580,-346.0,0.00017639,2]
[403607095,1769417445590,-3039.54588051,0.0001764,2]